Cogmind - Beta 14 @@@ ROGUE MODE // 2025.03.06 @ 19:22:53 Player: mix Result: Destroyed by G-34 Mercenary with Small Laser Performance ------------- Evolutions (1) 500 Regions Visited (4) 800 Robots Destroyed (107) 535 Value Destroyed (2576) 2576 Prototype IDs (28) 560 Alien Tech Used (0) 0 Bonus (658) 658 TOTAL SCORE: 5629 Bonus ------- High Alert Combat Kills 358 Aligned with FarCom 300 Cogmind --------- Core Integrity 0/400 Matter 240/300 Energy 77/100 System Corruption 6% Temperature Cool (6) Movement Hovering (150) Ox1 Location -9/Exiles Parts ------- > --- POWER (1) -------- (None) > --- PROPULSION (2) --- Combat Airjet > --- UTILITY (4) ------ Large Storage Unit Improved Light Armor Plating > --- WEAPON (2) ------- (None) > --- INVENTORY (15) --- Improved Terrain Scanner Medium Armor Plating Recalibrator Improved Medium Laser Advanced Beam Cannon Advanced Beam Cannon Improved Light Cannon Peak State ------------ > --- POWER ------------ Improved Ion Engine > --- PROPULSION ------- Light Treads Light Treads > --- UTILITY ---------- Improved Heat Sink Large Storage Unit Improved Light Armor Plating Improved Light Armor Plating > --- WEAPON ----------- Advanced Beam Cannon Guided Plasma Cannon > --- INVENTORY -------- Light Treads Improved Terrain Scanner Medium Armor Plating Improved Light Armor Plating Improved Light Armor Plating Recalibrator Improved Medium Laser Advanced Beam Cannon Improved Light Cannon Rocket Launcher [Rating: 27] Favorites ----------- Power Improved Ion Engine Engine Improved Ion Engine Propulsion Light Treads Treads Light Treads Hover Unit Combat Airjet Utility Improved Light Armor Plating Device Improved Heat Sink Storage Medium Storage Unit Protection Improved Light Armor Plating Weapon Improved Light Cannon Energy Gun Medium Laser Energy Cannon Advanced Beam Cannon Ballistic Gun Assault Rifle Ballistic Cannon Improved Light Cannon Launcher Rocket Launcher Special Weapon Plasma Cutter Build | -11 -10 -9 -9 -9 ------- Run | Yrd Mat Mat Min Exi Slots Evolved 2 | . . 2 . . Power . | . . . . . Propulsion . | . . . . . Utility 2 | . . 2 . . Weapon . | . . . . . Parts Attached 48 | 6 8 26 2 6 Power 6 | 1 2 3 . . Engine 6 | 1 2 3 . . Core . | . . . . . Reactor . | . . . . . Propulsion 8 | 2 1 3 . 2 Treads 7 | 2 1 3 . 1 Leg . | . . . . . Wheel . | . . . . . Hover 1 | . . . . 1 Flight . | . . . . . Utility 11 | 1 1 7 . 2 Device 1 | . . 1 . . Storage 3 | 1 1 1 . . Processor . | . . . . . Hackware . | . . . . . Protection 7 | . . 5 . 2 Artifact . | . . . . . Weapon 23 | 2 4 13 2 2 Energy Gun 2 | 1 . 1 . . Energy Cannon 5 | . . 3 1 1 Ballistic Gun 2 | 1 . 1 . . Ballistic Cannon 8 | . 3 5 . . Launcher 5 | . . 3 1 1 Special Weapon 1 | . 1 . . . Impact Weapon . | . . . . . Slashing Weapon . | . . . . . Piercing Weapon . | . . . . . Special Melee Weapon . | . . . . . Unidentified Prototypes 2 | . . 2 . . Parts Lost 14 | . . 4 . 10 Power 2 | . . 1 . 1 Propulsion 3 | . . . . 3 Utility 5 | . . 1 . 4 Weapon 4 | . . 2 . 2 Highest Loss Streak 10 | . . 2 . 10 To Critical Strikes . | . . . . . Average Slot Usage (%) 89 | . 84 88 100 96 Engine 11 | . 13 11 11 10 Treads 23 | . 28 22 22 20 Device 6 | . . 7 11 10 Storage 11 | . 14 11 11 11 Protection 12 | . . 13 22 21 Energy Cannon 8 | . . 6 22 21 Ballistic Cannon 13 | . 24 15 . . Peak Build Rating 27 | 6 11 22 22 27 Average Rating 16 | 4 9 16 21 23 On Entrance 12 | . 6 10 22 22 Naked Turns . | . . . . . Heaviest Build 48 | 14 25 42 42 48 Greatest Support 40 | 40 40 40 40 40 Greatest Overweight (x) 10 | . . 1 1 10 Average Overweight (x) . | . . . 1 1 Largest Inventory Capacity 15 | 8 10 15 15 15 Average Capacity 11 | 7 8 11 15 15 Most Carried 10 | 5 9 10 9 10 Average Carried 8 | . 7 9 9 9 Final Capacity 15 | 8 10 15 15 15 Final Carried 9 | . 9 9 9 7 Class Distribution -------------------- 54% | Scavenger-Mutant 45% | Mutant Dominant Class ---------------- Mutant | -10/Materials Scavenger-Mutant | -9/Materials Scavenger-Mutant | -9/Mines Scavenger-Mutant | -9/Exiles Resources | -11 -10 -9 -9 -9 ----------- Run | Yrd Mat Mat Min Exi Matter Collected 1727 | 218 320 1148 31 10 Remotely . | . . . . . Salvage Created 2874 | . 654 1641 130 449 Parts 208 | . 48 114 14 32 Haulers Intercepted 4 | . 1 3 . . Recyclers Shooed 3 | . 1 1 1 . Parts Field Recycled . | . . . . . Retrieved Matter . | . . . . . Parts Self-Destructed . | . . . . . Prevented . | . . . . . Kills | -11 -10 -9 -9 -9 ------- Run | Yrd Mat Mat Min Exi Combat Hostiles Destroyed 74 | . 16 37 7 14 Cannons 49 | . 16 28 3 2 AOE 23 | . . 8 3 12 Classes Destroyed 15 | . 7 4 . 4 Worker 9 | . 3 6 . . Builder 5 | . 3 2 . . Tunneler 2 | . . 2 . . Hauler 4 | . 1 3 . . Recycler 7 | . 3 3 1 . Mechanic 1 | . . 1 . . Operator 1 | . . 1 . . Watcher 4 | . 1 3 . . Swarmer 19 | . 9 3 7 . Grunt 39 | . 7 25 . 7 Brawler 2 | . . . . 2 Duelist 1 | . . . . 1 Sentry 9 | . . 9 . . Hunter 2 | . . . . 2 Programmer 2 | . . . . 2 Best Kill Streak 13 | . 6 11 8 13 Combat Bots Only 13 | . 4 6 4 13 Max Kills in Single Turn 4 | . 2 4 4 3 Gunslinging . | . . . . . Exploded 3 | . . 3 3 3 Melee . | . . . . . Uniques/NPCs Destroyed . | . . . . . Combat | -11 -10 -9 -9 -9 -------- Run | Yrd Mat Mat Min Exi Hostile Shots Fired 322 | . 45 133 12 132 Missed 92 | . 12 31 4 45 Damage Taken 3085 | . 297 1433 64 1291 Core 459 | . 59 117 . 283 Absorbed by Shields . | . . . . . Core Remaining (%) 88 | 100 76 . . . Volleys Fired 173 | . 42 109 8 14 Largest 2 | . 2 2 2 1 Hottest 136 | . 78 136 136 120 Shots Fired 330 | . 83 217 16 14 Gun 3 | . 1 2 . . Cannon 314 | . 82 208 15 9 Launcher 13 | . . 7 1 5 Special . | . . . . . Kinetic 254 | . 82 172 . . Thermal 63 | . 1 38 15 9 Explosive 13 | . . 7 1 5 Electromagnetic . | . . . . . Robot Hit Streak 21 | . 6 21 3 9 Robot Miss Streak 5 | . 5 5 2 2 Penetration Max . | . . . . . Secondary Targets . | . . . . . Shots Hit Robots 188 | . 40 132 7 9 Core Hits 127 | . 26 63 7 31 Critical Kills 1 | . . . 1 . Critical Parts Destroyed . | . . . . . Critical Strikes 4 | . 2 1 1 . Meltdown 1 | . . . 1 . Blast 3 | . 2 1 . . Melee Attacks . | . . . . . Impact . | . . . . . Slashing . | . . . . . Piercing . | . . . . . Sneak Attacks . | . . . . . Combat Hostiles . | . . . . . Follow-up Attacks . | . . . . . Damage Inflicted 6120 | . 900 3587 336 1297 Guns 29 | . 13 16 . . Cannons 4110 | . 879 2791 163 277 Explosions 1973 | . . 780 173 1020 Melee . | . . . . . Ramming 8 | . 8 . . . Kinetic 3093 | . 879 2214 . . Thermal 1046 | . 13 593 163 277 Explosive 1973 | . . 780 173 1020 Electromagnetic . | . . . . . Impact . | . . . . . Slashing . | . . . . . Piercing . | . . . . . Highest Corruption 6 | . . . . 6 Average Corruption 3 | . . . . 3 Corruption Purged . | . . . . . Corruption Blocked . | . . . . . Effects 2 | . . . . 2 Data Loss (minor) 1 | . . . . 1 Data Loss (major) 1 | . . . . 1 Overload Shots . | . . . . . Overflow Damage 45 | . . 36 . 9 Projectiles 36 | . . 36 . . Explosions 9 | . . . . 9 Melee . | . . . . . Knockbacks 21 | . 7 14 . . Impact . | . . . . . Kinetic 19 | . 6 13 . . Secondary 2 | . 1 1 . . Self-Inflicted Damage 59 | . . 59 . . Shots 2 | . . 2 . . Rammed 1 | . 1 . . . Targets Rammed 1 | . 1 . . . Kicked . | . . . . . Crushed . | . . . . . Highest Temperature 319 | . 123 319 156 280 Average Temperature 57 | . 39 61 73 99 Received Heat Transfer 834 | . 66 654 . 114 Siege Activations . | . . . . . Robots Corrupted . | . . . . . Combat Hostiles . | . . . . . Parts Fried . | . . . . . Impact Corruptions . | . . . . . Robots Melted 2 | . . 1 1 . Combat Hostiles 2 | . . 1 1 . Parts Melted 5 | . . 1 1 3 Heat Transferred 1923 | . 37 1073 296 517 Parts Sabotaged . | . . . . . Parts Stolen . | . . . . . Parts Stripped . | . . . . . Power Chain Reactions . | . . . . . Alert | -11 -10 -9 -9 -9 ------- Run | Yrd Mat Mat Min Exi Peak Influence 901 | . 372 901 529 . Initial 351 | . . 156 351 . Average 452 | . 211 553 516 . Maximum Alert Level 3 | . 1 3 2 . Low Security (%) 13 | 100 41 1 . . Level 1 29 | . 58 22 1 . Level 2 41 | . . 50 98 . Level 3 15 | . . 25 . . Level 4 . | . . . . . Level 5 . | . . . . . High Security . | . . . . . Max Security . | . . . . . Squads Dispatched 8 | . 5 3 . . Investigation 4 | . 3 1 . . Extermination . | . . . . . Reinforcement 3 | . 2 1 . . Assault 1 | . . 1 . . Garrison . | . . . . . Intercept . | . . . . . Searches Triggered . | . . . . . Construction Impeded . | . . . . . Haulers Reinforced . | . . . . . Active Scanning Responses . | . . . . . Cargo Convoy Interrupts . | . . . . . Stealth | -11 -10 -9 -9 -9 --------- Run | Yrd Mat Mat Min Exi Distress Signals 8 | . 1 6 1 . Communications Jammed . | . . . . . Distress Signals . | . . . . . Times Spotted 110 | . 23 54 6 27 Peak Tracking Total 17 | . 3 5 4 17 Tactical Retreats 3 | . . 2 . 1 Traps | -11 -10 -9 -9 -9 ------- Run | Yrd Mat Mat Min Exi Traps Triggered 5 | . 3 2 . . Indirectly . | . . . . . Trap Hack Attempts . | . . . . . Triggered . | . . . . . Disarmed . | . . . . . Reprogrammed . | . . . . . Reused . | . . . . . Traps Extracted . | . . . . . Installed . | . . . . . Triggered . | . . . . . Machines | -11 -10 -9 -9 -9 ---------- Run | Yrd Mat Mat Min Exi Machines Disabled 8 | . 2 3 . 3 Max in Single Turn 2 | . 1 1 . 2 Machines Repaired . | . . . . . Machines Dismantled . | . . . . . Machines Sabotaged . | . . . . . Overloaded Fab Kills . | . . . . . Hacking | -11 -10 -9 -9 -9 --------- Run | Yrd Mat Mat Min Exi Machines Accessed 6 | . 3 2 . 1 Terminals 3 | . 2 1 . . Fabricators . | . . . . . Repair Stations . | . . . . . Recycling Units 2 | . 1 1 . . Scanalyzers . | . . . . . Garrison Access . | . . . . . Total Hacks 12 | . 8 3 . 1 Successful 8 | . 5 2 . 1 Failed 4 | . 3 1 . . Catastrophic 1 | . 1 . . . Database Lockouts . | . . . . . Manual 6 | . 4 1 . 1 Terminals 5 | . 4 1 . . Fabricators . | . . . . . Repair Stations . | . . . . . Recycling Units 6 | . 4 2 . . Scanalyzers . | . . . . . Garrison Access . | . . . . . Terminal Hacks 3 | . 1 1 . 1 Prototype ID Bank 1 | . 1 . . . Branch Access Points 1 | . . 1 . . Derelict Proto ID Bank 1 | . . . . 1 Fabricator Hacks . | . . . . . Repair Station Hacks . | . . . . . Recycling Unit Hacks 3 | . 2 1 . . Retrieve Components 3 | . 2 1 . . Scanalyzer . | . . . . . Garrison Access Hacks . | . . . . . Unauthorized Hacks 2 | . 2 . . . Terminals 1 | . 1 . . . Botnet 1 | . 1 . . . Fabricators . | . . . . . Repair Stations . | . . . . . Recycling Units 1 | . 1 . . . Reject 1 | . 1 . . . Scanalyzers . | . . . . . Garrison Access . | . . . . . Data Cores Recovered 1 | . . 1 . . Used . | . . . . . Hacking Detections 3 | . 1 2 . . Full Trace Events 1 | . 1 . . . Feedback Events . | . . . . . Feedback Blocked . | . . . . . Robot Schematics Acquired . | . . . . . Robots Built . | . . . . . Authchips . | . . . . . Time . | . . . . . Total Robot Build Rating . | . . . . . Part Schematics Acquired . | . . . . . Parts Built . | . . . . . Authchips . | . . . . . Time . | . . . . . Total Part Build Rating . | . . . . . Parts Repaired . | . . . . . Time . | . . . . . Parts Recycled . | . . . . . Recycled Matter . | . . . . . Retrieved Matter . | . . . . . Retrieved Components 2 | . . 2 . . Parts Scanalyzed . | . . . . . Part Schematics Acquired . | . . . . . Parts Damaged . | . . . . . Bothacking | -11 -10 -9 -9 -9 ------------ Run | Yrd Mat Mat Min Exi Used RIF Installer . | . . . . . Robots Hacked . | . . . . . Non-combat . | . . . . . Combat . | . . . . . Robot Hacks Applied . | . . . . . Relay Couplers Released . | . . . . . Fabnet Peak Effective % . | . . . . . Robots Rewired . | . . . . . Allies Hacked . | . . . . . Hacks Repelled . | . . . . . Allies | -11 -10 -9 -9 -9 -------- Run | Yrd Mat Mat Min Exi Total Allies . | . . . . . Largest Group . | . . . . . Highest-Rated Group . | . . . . . Highest-Rated Ally . | . . . . . Total Orders . | . . . . . Ally Attacks . | . . . . . Total Damage . | . . . . . Kills . | . . . . . Allies Corrupted . | . . . . . Allies Melted . | . . . . . Intel | -11 -10 -9 -9 -9 ------- Run | Yrd Mat Mat Min Exi Robot Analysis Total . | . . . . . Derelict Logs Recovered . | . . . . . Drone Launches . | . . . . . Drone Recoveries . | . . . . . Exploration | -11 -10 -9 -9 -9 ------------- Run | Yrd Mat Mat Min Exi Turns Passed 3603 | 52 795 1935 294 527 Spaces Moved 1600 | 37 400 850 112 201 Core 18 | 16 . . . 2 Treads 1581 | 21 400 850 112 198 Legs . | . . . . . Wheels . | . . . . . Hover 1 | . . . . 1 Flight . | . . . . . Fastest Speed 50 | 50 160 160 240 220 Average Speed 183 | 112 160 175 240 243 Slowest Speed 550 | 160 160 240 240 550 Overloaded Moves . | . . . . . Propulsion Burnouts . | . . . . . Robots Hopped . | . . . . . Cave-ins Triggered . | . . . . . Exploration Rate (%) 45 | 3 73 82 27 41 Regions Visited 4 Branch Regions 2 Pre-discovered Areas . | . . . . . Known Exits Taken 1 | . . 1 . . Unknown Exits Taken 3 | 1 1 . 1 . Scrap Searched 1 | . . . 1 . Spaces Dug . | . . . . . Terrain Destroyed 121 | . 9 61 14 37 Melee . | . . . . . Projectile 16 | . 9 5 . 2 AOE 105 | . . 56 14 35 Terrain Rammed . | . . . . . Walls Destroyed . | . . . . . Machines Disabled . | . . . . . Actions | -11 -10 -9 -9 -9 --------- Run | Yrd Mat Mat Min Exi Total 1938 | 47 468 1078 121 224 Wait 59 | . 2 56 . 1 Move 1596 | 36 399 849 111 201 Hop . | . . . . . Pick Up 37 | 5 11 19 . 2 Fast Attach 7 | 1 3 3 . . Attach 14 | 5 . 5 . 4 Detach . | . . . . . Swap 28 | . 5 19 2 2 Drop 22 | . 4 18 . . Fire 173 | . 42 109 8 14 Melee . | . . . . . Ram . | . . . . . Kick . | . . . . . Crush 1 | . 1 . . . Escape Stasis . | . . . . . Rewire . | . . . . . Trap . | . . . . . Miscellaneous 1 | . 1 . . . Route ------- -11/Scrapyard -10/Materials (discovered 3 exits: *Mat x3) -9/Materials (discovered 3 exits: [*Mat x2] / *Min) -9/Mines -9/Exiles History --------- Turn | Location | Event 8 | -11/Scrapyard | Discovered new exit (range 16) 53 | -11/Scrapyard | Entered Materials 275 | -10/Materials | Discovered new exit (range 14) 317 | -10/Materials | Build established: Mutant 478 | -10/Materials | Discovered new exit (range 16) 744 | -10/Materials | Discovered new exit (range 8) 848 | -10/Materials | Entered another Materials area 848 | -9/Materials | Evolved 2 slots: Utility x2 1499 | -9/Materials | Discovered new exit (range 5) 1792 | -9/Materials | Discovered new exit (range 8) 1909 | -9/Materials | Build established: Scavenger-Mutant 2448 | -9/Materials | First assault squad dispatched 2454 | -9/Materials | Identified exit to Mines 2783 | -9/Materials | Entered Mines 3065 | -9/Mines | Deemed a non-threat by the Exiles lab entrance 3067 | -9/Mines | Discovered new exit (range 5) 3077 | -9/Mines | Entered Exiles 3137 | -9/Exiles | Met 8R-AWN 3176 | -9/Exiles | Met EX-HEX 3245 | -9/Exiles | Met EX-BIN 3279 | -9/Exiles | Aligned with FarCom system 3281 | -9/Exiles | Given EX-Vault access code 3337 | -9/Exiles | Opened EX-Vault 3351 | -9/Exiles | Found Gui. Plasma Cannon 3409 | -9/Exiles | Warned to stay clear of 0b10 Research branches 3436 | -9/Exiles | Exiles lab attacked by MAIN.C 3538 | -9/Exiles | Lost 3 allies 3595 | -9/Exiles | Core integrity fell below 50% 3599 | -9/Exiles | Core integrity fell below 20% 3604 | -9/Exiles | Destroyed by G-34 Mercenary with Small Laser Last Messages --------------- Machine disabled. Penetrated by Slug. Critical hit (Destroy). Penetrated by Slug. The unstable cave ceiling collapses. Aluminum Leg crushed. Penetrated by Slug. Imp. Light Armor Plating destroyed. System corrupted: Substantial component data lost. Penetrated by Slug. Machine disabled. Penetrated by Slug. Acquired Cmb. Airjet. Penetrated by Slug. Slug penetrates Wall. as-72423 destroyed. The unstable cave ceiling collapses. Penetrated by Slug. Gui. Plasma Cannon destroyed. Map ----- +----------------------------------------------------+ | """#?????????????????????????????????????? | | """#?????????????????????????????????????? | | """"?????????????????????????????????????? | | """#?????????????????????????????????????? | | "X" """"?????????????????????????????????????? | | """ #?????????????????????????????????????? | | """""""""#?????????????????????????????????????? | | ###########?????????????????????????????????????? | | #???????????????????????????????????????????????? | | #???????????????????????????????????????????????? | | ##??????????????????????????????????????????????? | | ##???###########???????????????????????????????? | | #####"""""""""##??????????????????????????????? | | " """ """"##?????????????????????????????? | | "" " #??????????????###????????????? | | " """#???????????? # ##???????????? | | " "#???????????# #???????????? | | " "##?????????# #????????????? | | ""###???????#" #????????????# | | """#?????## /=! #????????????# | | " "#???## ![=%%=###????????### | | ##""" ##??# ! hh=%! ## ####### | | ?##""" ##?# %[h[=== =* """## | | ??#"""" ###=!%%hg=g! =%| % *% * | | ??#"" **=p=[** =%[ [ | | ??"""" @ = #*== *! | | ?? % = = """""#### | | ?? !; # ########??#### | | ?? #### ##????????????##### | | ? ##???###?????????????????# | | ? " ##????????????????????????? | | ?"" """ a a % "#?????????????????????????? | | ??"" " " ""#" a "##?????????????????????????? | | ?????""" """##""" "##??????????????????????????? | | ??????#""????#########???????????????????????????? | | ?????????????????????????????????????????????????? | | ?????????????????????????????????????????????????? | | ?????????????????????????????????????????????????? | | ?????????????????????????????????????????????????? | | ?????????????????????????????????????????????????? | | ?????????????????????????????????????????????????? | | ?????????????????????????????????????????????????? | | ?????????????????????????????????????????????????? | | ?????????????????????????????????????????????????? | | ?????????????????????????????????????????????????? | | ?????????????????????????????????????????????????? | | ?????????????????????????????????????????????????? | | ?????????????????????????????????????????????????? | | ?????????????????????????????????????????????????? | | ?????????????????????????????????????????????????? | +----------------------------------------------------+ Best States ------------- Heat Dissipation 42 Energy Generation 12 Energy Capacity 265 Matter Stores 300 Matter Capacity 300 Sight Range 16 Terrain Scan Density 10 Armor Coverage 300 Evasion (%) 50 Recoil Reduction 2 Item Schematics ----------------- None Robot Schematics ------------------ None Fabricated ------------ Nothing Alien Tech Used ----------------- None Achievements -------------- None Challenges ------------ None Game ------ Seed NodeGravityPlating Manual? 0 Play Time 00:27:03 Cumulative 58.5 hours Start 2025.03.06 @ 18:57:04 End 2025.03.06 @ 19:22:53 Sessions 1 Manual Loads 0 Difficulty Rogue Special Mode None Game No. 83 Rogue 69 Adventurer 14 Explorer 0 Win Type - Total 0 Types 0/0/0/0/0/0/0/0/0 Lore% 20 Gallery% 41 Achievement% 38 Wizard Run 0 Options --------- Layout 1 ASCII 0 Keyboard 0 Movement Mouse Keybinds 0 Fullscreen 1 Font 24/Smallcaps Map View 50x35 Zoom Use 0% Tactical HUD 0 Map Filters NONE Filters NONE Steam 1 RUN: 7c81acd6-a541-4fe1-8b7d-f2a581105814